bitfinex/quotes_BTCUSD_20250512
["timestamp","ask_amount","ask_price","bid_price","bid_amount"]
[1747041593916,0.9558511,104450.0,104440.0,0.23776]
[1747041594202,0.9548511,104450.0,104440.0,0.11888]
[1747041594380,0.9578511,104450.0,104440.0,0.23676]
[1747041594587,0.9568511,104450.0,104440.0,0.23576]
[1747041594797,0.9538511,104450.0,104440.0,0.23576]
[1747041594997,0.9680688,104450.0,104440.0,0.23576]
[1747041595227,0.9730688,104450.0,104440.0,0.23576]
[1747041595863,0.9680688,104450.0,104440.0,0.23576]
[1747041596492,0.5718722,104440.0,104430.0,0.41336]
[1747041596714,1.36626735,104440.0,104430.0,0.64916]
[1747041597760,1.3567265,104440.0,104430.0,0.64916]
[1747041597896,1.0217265,104440.0,104430.0,0.64916]
[1747041599479,0.71314929,104440.0,104430.0,0.86940211]
[1747041599695,0.71314929,104440.0,104430.0,0.90070211]
[1747041599696,0.73229747,104440.0,104430.0,0.90070211]
[1747041599876,0.93336976,104440.0,104430.0,0.9007022]
[1747041600051,0.93336976,104440.0,104430.0,0.91027735]
[1747041600052,0.73229747,104440.0,104430.0,0.91027735]
[1747041600268,0.93337058,104440.0,104430.0,0.9007022]
[1747041600519,0.92379626,104440.0,104430.0,0.9007022]
[1747041600711,0.7131491,104440.0,104430.0,0.91027735]
[1747041600943,0.01,104440.0,104430.0,0.91027735]
[1747041601166,0.01957405,104440.0,104430.0,0.91027735]
[1747041601400,0.01,104440.0,104430.0,0.91027735]
[1747041601946,0.01,104440.0,104430.0,2.49750065]
[1747041602173,0.01,104440.0,104430.0,2.46968165]
[1747041602890,0.011,104440.0,104430.0,2.41676665]
[1747041603141,0.011,104440.0,104430.0,2.41511265]
[1747041603798,0.011,104440.0,104430.0,1.99573365]
[1747041604035,0.006,104440.0,104430.0,1.34713165]
[1747041604256,0.006,104440.0,104430.0,1.65945965]
[1747041604485,0.007,104440.0,104430.0,1.66145965]
[1747041605232,0.007,104440.0,104430.0,1.67145965]
[1747041611982,0.008,104450.0,104440.0,0.60272102]
[1747041612241,0.008,104450.0,104440.0,3.69857532]
[1747041613214,0.002,104450.0,104440.0,3.69857532]
[1747041613589,0.002,104470.0,104460.0,0.57657886]
[1747041613735,0.002,104470.0,104460.0,2.08876616]
[1747041614143,0.002,104470.0,104460.0,1.72437616]
[1747041614986,0.003,104470.0,104460.0,1.69151316]
[1747041615505,0.003,104470.0,104460.0,0.92513316]
[1747041615718,0.0125713,104470.0,104460.0,0.89263316]
[1747041615915,0.01357139,104470.0,104460.0,0.68297886]
[1747041616136,0.05494287,104470.0,104460.0,0.80077886]
[1747041616286,0.25595787,104470.0,104460.0,0.78163379]
[1747041616488,0.05494287,104470.0,104460.0,0.80077886]
[1747041616698,0.06451462,104470.0,104460.0,0.80077886]
[1747041616897,0.07408656,104470.0,104460.0,0.80077886]
[1747041617376,0.06451462,104470.0,104460.0,0.80077886]
[1747041617582,0.01914342,104470.0,104460.0,0.81035116]
[1747041617795,0.20101454,104470.0,104460.0,0.1248]
[1747041618002,0.21058648,104470.0,104460.0,0.45316646]
[1747041618210,0.21058648,104470.0,104460.0,0.24256]
[1747041618438,0.20101454,104470.0,104460.0,0.24256]
[1747041618659,0.28921063,104470.0,104460.0,0.1248]
[1747041618878,0.28729681,104470.0,104460.0,0.24256]
[1747041620713,0.31969681,104470.0,104460.0,0.24256]
[1747041622527,0.31969681,104470.0,104460.0,0.65596]
[1747041624611,0.31969681,104470.0,104460.0,0.85699379]
[1747041624830,0.1378256,104470.0,104460.0,0.87613886]
[1747041625039,0.03828638,104470.0,104460.0,0.87613886]
[1747041625259,0.02871453,104470.0,104460.0,0.87613886]
[1747041625657,0.01914278,104470.0,104460.0,0.87613886]
[1747041625860,0.0382862,104470.0,104460.0,0.87613886]
[1747041626111,0.02871435,104470.0,104460.0,0.87613886]
[1747041626497,0.94590827,104480.0,104470.0,0.22015805]
[1747041626708,1.04176257,104480.0,104470.0,0.21058648]
[1747041626916,1.0226208,104480.0,104470.0,0.21058666]
[1747041627121,1.0226208,104480.0,104470.0,0.22973026]
[1747041627368,1.0226208,104480.0,104470.0,0.34749026]
[1747041627789,1.0246208,104480.0,104470.0,0.3389186]
[1747041627975,1.00547849,104480.0,104470.0,0.31977463]
[1747041629168,1.00547849,104480.0,104470.0,0.11976]
[1747041629981,1.00547849,104480.0,104470.0,0.32077445]
[1747041629982,1.0150496,104480.0,104470.0,0.32077445]
[1747041630185,1.0150496,104480.0,104470.0,0.31120251]
[1747041630392,1.0150496,104480.0,104470.0,0.11976]
[1747041630523,1.0150496,104480.0,104470.0,0.32077454]
[1747041630733,1.0150496,104480.0,104470.0,0.31120251]
[1747041631356,1.0150496,104480.0,104470.0,0.11976]
[1747041632468,1.0150496,104480.0,104470.0,0.23748]
[1747041639816,1.0150496,104480.0,104470.0,0.23744]
[1747041640019,1.28355243,104480.0,104470.0,0.11976]
[1747041640229,1.29809328,104480.0,104470.0,0.23744]
[1747041644710,0.95409328,104480.0,104470.0,0.11976]
[1747041644951,1.22259611,104480.0,104470.0,0.11968]
[1747041645119,1.27259611,104480.0,104470.0,0.002]
[1747041645331,1.27259611,104480.0,104470.0,0.23736]
[1747041645742,1.27059611,104480.0,104470.0,0.23636]
[1747041645954,1.27059611,104480.0,104470.0,0.23536]
[1747041646358,1.29129023,104480.0,104470.0,0.23736]
[1747041646588,1.29229023,104480.0,104470.0,0.002]
[1747041646802,0.56516729,104450.0,104440.0,0.002]
[1747041647032,0.96082442,104450.0,104440.0,0.23736]
[1747041647959,0.96182442,104450.0,104440.0,0.23836]
[1747041648733,0.96182442,104450.0,104440.0,0.23936]
[1747041649159,0.96182442,104450.0,104440.0,0.004]
[1747041649386,0.20109144,104430.0,104420.0,0.11968]
[1747041649606,1.00058942,104430.0,104420.0,0.11982619]
[1747041649801,1.00058942,104430.0,104420.0,0.23750619]
[1747041650993,0.24130713,104410.0,104400.0,2.44097765]
[1747041651116,0.24130713,104410.0,104400.0,2.67633765]
[1747041651117,0.33716143,104410.0,104400.0,2.67633765]
[1747041651338,0.60566426,104410.0,104400.0,2.67633765]
[1747041651759,0.33716143,104410.0,104400.0,2.67633765]
[1747041652195,0.33816143,104410.0,104400.0,2.67733765]
[1747041652402,0.33916143,104410.0,104400.0,2.67933765]
[1747041663238,0.32416143,104410.0,104400.0,2.67933765]
[1747041663503,0.31813896,104410.0,104400.0,2.90248853]
[1747041663710,0.3085618,104410.0,104400.0,2.87098853]
[1747041664774,0.3085618,104410.0,104400.0,2.67941765]
[1747041666881,0.3085618,104410.0,104400.0,2.87098853]
[1747041667179,0.29898436,104410.0,104400.0,2.67941765]
[1747041667888,0.3085618,104410.0,104400.0,2.87098853]
[1747041668081,0.30856198,104410.0,104400.0,2.67941765]
[1747041669246,0.30856198,104410.0,104400.0,2.88668853]
[1747041669445,0.30856198,104410.0,104400.0,2.69511765]
[1747041670424,0.30856198,104410.0,104400.0,2.67941765]
[1747041673375,0.60936481,104410.0,104400.0,2.67941765]
[1747041673791,0.34086198,104410.0,104400.0,2.67941765]
[1747041674071,0.62390566,104410.0,104400.0,2.56173765]
[1747041674297,0.62390566,104410.0,104400.0,2.67925765]
[1747041674954,0.62290566,104410.0,104400.0,2.67725765]
[1747041675209,0.62290566,104410.0,104400.0,2.67825765]
[1747041675822,0.62190566,104410.0,104400.0,2.67725765]
[1747041676258,0.62290566,104410.0,104400.0,2.55961765]
[1747041676477,0.62290566,104410.0,104400.0,2.67725765]
[1747041676894,0.62290566,104410.0,104400.0,2.68093579]
[1747041677347,1.30690566,104410.0,104400.0,2.68093579]
[1747041677702,1.03840283,104410.0,104400.0,2.68093579]
[1747041677908,1.30690566,104410.0,104400.0,2.68093579]
[1747041678160,1.03840283,104410.0,104400.0,2.68093579]
[1747041678363,1.30690566,104410.0,104400.0,2.68093579]
[1747041680355,0.62290566,104410.0,104400.0,2.68093579]
[1747041681139,0.96290566,104410.0,104400.0,2.56329579]
[1747041681342,1.33140849,104410.0,104400.0,2.03221579]
[1747041681625,1.46602697,104410.0,104400.0,2.02455454]
[1747041681732,1.42602697,104410.0,104400.0,1.52846174]
[1747041681955,1.39916095,104410.0,104400.0,1.40907556]
[1747041682168,1.40016095,104410.0,104400.0,1.40907556]
[1747041682375,1.40216095,104410.0,104400.0,1.40141431]
[1747041682823,1.39916095,104410.0,104400.0,1.39375306]
[1747041683102,1.40716095,104410.0,104400.0,1.38609181]
[1747041683690,1.40716095,104410.0,104400.0,1.37843056]
[1747041683982,1.41216095,104410.0,104400.0,1.37176931]
[1747041686129,0.39562216,104410.0,104400.0,1.35644681]
[1747041686343,0.66412499,104410.0,104400.0,1.47412681]
[1747041686772,1.00412499,104410.0,104400.0,1.47412681]
[1747041686981,1.01866584,104410.0,104400.0,1.47412681]
[1747041688757,1.01866584,104410.0,104400.0,1.59176681]
[1747041692603,1.01866584,104410.0,104400.0,1.59096681]
[1747041693177,0.98636584,104410.0,104400.0,1.59096681]
[1747041693400,0.71786301,104410.0,104400.0,1.59096681]
[1747041694030,0.98636584,104410.0,104400.0,1.59092681]
[1747041694258,0.71786301,104410.0,104400.0,1.59092681]
[1747041694926,0.98697775,104410.0,104400.0,1.59092681]
[1747041695113,0.71786301,104410.0,104400.0,1.59092681]
[1747041695779,1.01857775,104410.0,104400.0,1.59092681]
[1747041695987,0.67857775,104410.0,104400.0,1.59092681]
[1747041696338,1.01857775,104410.0,104400.0,1.59092681]
[1747041697662,1.02822424,104410.0,104400.0,1.59092681]
[1747041699524,1.02822424,104410.0,104400.0,1.47332681]
[1747041699745,1.02822424,104410.0,104400.0,1.59092681]
[1747041701934,0.7591095,104410.0,104400.0,1.59092681]
[1747041702770,1.02822424,104410.0,104400.0,1.59092681]
[1747041704190,0.7591095,104410.0,104400.0,1.59092681]
[1747041704423,1.02822424,104410.0,104400.0,1.59092681]
[1747041707840,1.02822424,104410.0,104400.0,1.47332681]
[1747041707841,1.06624363,104410.0,104400.0,1.47332681]
[1747041708059,1.11624363,104410.0,104400.0,1.59092681]
[1747041708314,1.07822424,104410.0,104400.0,1.59092681]
[1747041709387,0.16226097,104410.0,104400.0,1.89204155]
[1747041709622,0.16219137,104410.0,104400.0,2.09319088]
[1747041709861,0.04873103,104410.0,104400.0,2.10276914]
[1747041710090,0.05830838,104410.0,104400.0,2.12192521]
[1747041710308,0.32847544,104410.0,104400.0,1.62292681]
[1747041710526,0.32656162,104410.0,104400.0,1.62292681]
[1747041710741,0.31556162,104410.0,104400.0,1.62192681]
[1747041710949,0.31556162,104410.0,104400.0,1.81349769]
[1747041711233,0.29798427,104410.0,104400.0,1.81349769]
[1747041711442,0.29798427,104410.0,104400.0,1.62192681]
[1747041711640,0.30398427,104410.0,104400.0,1.62192681]
[1747041711992,0.29898427,104410.0,104400.0,1.62192681]
[1747041712206,0.29898427,104410.0,104400.0,1.38664681]
[1747041712404,0.30198427,104410.0,104400.0,1.58984681]
[1747041712917,0.30198427,104410.0,104400.0,1.62154681]
[1747041715142,0.30198427,104410.0,104400.0,1.58984681]
[1747041715691,0.30198427,104410.0,104400.0,1.60594681]
[1747041717215,0.30198427,104410.0,104400.0,2.01966681]
[1747041718580,0.30198427,104410.0,104400.0,2.03526681]
[1747041723459,0.31652512,104410.0,104400.0,1.91766681]
[1747041723658,0.58563986,104410.0,104400.0,2.00348681]
[1747041723864,0.61793986,104410.0,104400.0,2.00348681]
[1747041724079,0.95793986,104410.0,104400.0,1.76836681]
[1747041724504,0.95793986,104410.0,104400.0,2.00348681]
[1747041725940,0.95493986,104410.0,104400.0,2.00348681]
[1747041726145,0.96093986,104410.0,104400.0,2.00348681]
[1747041726365,0.95993986,104410.0,104400.0,2.00348681]
[1747041726616,0.96493986,104410.0,104400.0,2.00448681]
[1747041727270,0.69582512,104410.0,104400.0,2.00448681]
[1747041727474,0.96393986,104410.0,104400.0,2.00448681]
[1747041728764,0.96393986,104410.0,104400.0,1.88829713]
[1747041728904,0.96393986,104410.0,104400.0,2.00585713]
[1747041731378,0.96393986,104410.0,104400.0,1.59213713]
[1747041734067,0.69482512,104410.0,104400.0,1.59213713]
[1747041734312,0.96393986,104410.0,104400.0,1.35701713]
[1747041741193,0.99495872,104410.0,104400.0,1.35701713]
[1747041741414,1.39495872,104410.0,104400.0,1.35701713]
[1747041741642,1.40071765,104410.0,104400.0,1.35701713]
[1747041743551,1.35071765,104410.0,104400.0,1.35701713]
[1747041750016,0.96841765,104410.0,104400.0,1.35701713]
[1747041750249,0.69930291,104410.0,104400.0,1.35701713]
[1747041750467,0.96841765,104410.0,104400.0,1.35701713]
[1747041750899,0.96841765,104410.0,104400.0,1.47457713]
[1747041755725,0.69930291,104410.0,104400.0,1.50507713]
[1747041755955,0.96841765,104410.0,104400.0,1.50507713]
[1747041759456,0.96841765,104410.0,104400.0,1.47457713]
[1747041759628,0.96774103,104410.0,104400.0,1.48977713]
[1747041759843,0.96774103,104410.0,104400.0,1.50577713]
[1747041766822,0.6618485,104410.0,104400.0,1.50577713]
[1747041767967,0.64730765,104410.0,104400.0,1.50577713]
[1747041768164,0.30730765,104410.0,104400.0,1.50577713]
[1747041771982,0.30730765,104410.0,104400.0,1.62821713]
[1747041772629,0.30730765,104410.0,104400.0,1.96821713]
[1747041774520,0.30730765,104410.0,104400.0,2.38193713]
[1747041778459,0.30730765,104410.0,104400.0,2.11849738]
[1747041778801,0.30730765,104410.0,104400.0,2.36747564]
[1747041779014,0.12533228,104410.0,104400.0,2.38663153]
[1747041779266,0.12600835,104410.0,104400.0,2.38663153]
[1747041779462,0.04930875,104410.0,104400.0,2.38663153]
[1747041779667,0.04930875,104410.0,104400.0,2.36747564]
[1747041779877,0.05888637,104410.0,104400.0,2.37705381]
[1747041780287,0.04330875,104410.0,104400.0,2.37705381]
[1747041780490,0.23486128,104410.0,104400.0,2.37705381]
[1747041780698,0.22828485,104410.0,104400.0,2.37705381]
[1747041781555,0.22328485,104410.0,104400.0,2.37605381]
[1747041782125,0.22528485,104410.0,104400.0,2.37605381]
[1747041783346,0.22128485,104410.0,104400.0,2.3856318]
[1747041783568,0.01457707,104410.0,104400.0,2.3952097]
[1747041783785,0.005,104410.0,104400.0,2.66432444]
[1747041783997,0.0145768,104410.0,104400.0,2.66432444]
[1747041784209,0.02415378,104410.0,104400.0,2.66432444]
[1747041784423,0.0433081,104410.0,104400.0,2.66432444]
[1747041784631,0.03373085,104410.0,104400.0,2.66432444]
[1747041784862,0.02415378,104410.0,104400.0,2.66432444]
[1747041785068,0.03373103,104410.0,104400.0,2.66432444]
[1747041785917,0.02415378,104410.0,104400.0,2.66432444]
[1747041786329,0.0433082,104410.0,104400.0,2.66432444]
[1747041786768,0.05288564,104410.0,104400.0,2.66432444]
[1747041786962,0.0433081,104410.0,104400.0,2.66432444]
[1747041787254,0.05288545,104410.0,104400.0,2.66432444]
[1747041788350,0.0145768,104410.0,104400.0,2.66432444]
[1747041788773,0.02415387,104410.0,104400.0,2.66432444]
[1747041788944,0.03373103,104410.0,104400.0,2.66432444]
[1747041791600,0.03373103,104410.0,104400.0,1.91634814]
[1747041791601,0.21570713,104410.0,104400.0,1.91634814]
[1747041791826,0.58067617,104410.0,104400.0,1.78350814]
[1747041792274,0.31156143,104410.0,104400.0,1.81600814]
[1747041792729,0.31156143,104410.0,104400.0,2.01715756]
[1747041793159,0.29240683,104410.0,104400.0,2.01715756]
[1747041793370,0.29240683,104410.0,104400.0,1.81600814]
[1747041800090,0.29240683,104410.0,104400.0,2.01715756]
[1747041804117,0.29240683,104410.0,104400.0,1.82558668]
[1747041804508,0.29240683,104410.0,104400.0,2.36673592]
[1747041804938,0.29240683,104410.0,104400.0,2.36673601]
[1747041805145,0.30198427,104410.0,104400.0,2.37631418]
[1747041805361,0.30198427,104410.0,104400.0,2.574917]
[1747041806076,0.30198427,104410.0,104400.0,2.58449508]
[1747041806574,0.005,104410.0,104400.0,2.59407298]
[1747041806814,0.04330856,104410.0,104400.0,2.59407298]
[1747041807206,0.03373112,104410.0,104400.0,2.59407298]
[1747041807342,0.04330856,104410.0,104400.0,2.59407298]
[1747041810131,0.03373112,104410.0,104400.0,2.59407298]
[1747041810402,0.02415387,104410.0,104400.0,2.59407298]
[1747041810621,0.005,104410.0,104400.0,2.7926758]
[1747041810787,0.005,104410.0,104400.0,2.59407298]
[1747041812859,0.03373085,104410.0,104400.0,2.39547016]
[1747041813072,0.03373076,104410.0,104400.0,2.59407298]
[1747041813289,0.02415369,104410.0,104400.0,2.59407298]
[1747041813906,0.04330792,104410.0,104400.0,2.59355298]
[1747041814253,0.05288536,104410.0,104400.0,2.39495016]
[1747041814896,0.04330792,104410.0,104400.0,2.39495016]
[1747041815352,0.04330783,104410.0,104400.0,2.39495016]
[1747041815992,0.05288518,104410.0,104400.0,2.40443661]
[1747041816201,0.24443771,104410.0,104400.0,2.40443661]
[1747041816401,0.24443835,104410.0,104400.0,2.40443661]
[1747041816618,0.05288646,104410.0,104400.0,2.40271661]
[1747041816843,0.24443963,104410.0,104400.0,2.40271661]
[1747041817091,0.23486247,104410.0,104400.0,2.36063871]
[1747041817339,0.22528512,104410.0,104400.0,2.34148246]
[1747041817543,0.21570768,104410.0,104400.0,2.36063908]
[1747041817756,0.21570768,104410.0,104400.0,2.37021725]
[1747041817981,0.30198445,104410.0,104400.0,2.22376246]
[1747041818188,0.30800683,104410.0,104400.0,2.13075459]
[1747041818415,0.11043183,104410.0,104400.0,2.53059864]
[1747041818618,0.31156161,104410.0,104400.0,2.56525471]
[1747041819028,0.32113923,104410.0,104400.0,2.56525489]
[1747041819613,0.32113923,104410.0,104400.0,2.58185489]
[1747041820201,0.32113923,104410.0,104400.0,2.59143288]
[1747041820816,0.32113923,104410.0,104400.0,2.34157399]
[1747041821032,0.32113923,104410.0,104400.0,2.35115198]
[1747041822351,0.32113923,104410.0,104400.0,2.36072988]
[1747041822565,0.33763923,104410.0,104400.0,2.32241756]
[1747041822803,0.35273923,104410.0,104400.0,2.34157418]
[1747041823043,0.35273923,104410.0,104400.0,2.35115235]
[1747041823250,0.35273923,104410.0,104400.0,2.36073043]
[1747041823592,0.14468597,104410.0,104400.0,2.36072979]
[1747041823806,0.12958597,104410.0,104400.0,2.36072979]
[1747041824012,0.12958597,104410.0,104400.0,2.37035569]
[1747041824425,0.33071603,104410.0,104400.0,2.37035569]
[1747041825058,0.12958597,104410.0,104400.0,2.37035569]
[1747041825546,0.12958597,104410.0,104400.0,2.36072979]
[1747041825768,0.02415423,104410.0,104400.0,2.39132979]
[1747041826859,0.2252842,104410.0,104400.0,2.39132979]
[1747041827041,0.23486173,104410.0,104400.0,2.39132979]
[1747041827220,0.0433092,104410.0,104400.0,2.37572979]
[1747041827417,0.03373167,104410.0,104400.0,2.37572979]
[1747041827857,0.03373167,104410.0,104400.0,2.38547178]
[1747041829533,0.03373167,104410.0,104400.0,2.37047178]
[1747041831481,0.03373167,104410.0,104400.0,2.40207178]
[1747041832245,0.03373167,104410.0,104400.0,2.37047178]
[1747041833394,0.03373167,104410.0,104400.0,2.36072979]
[1747041834531,0.03373167,104410.0,104400.0,2.37662979]
[1747041834739,0.03373167,104410.0,104400.0,2.39292979]
[1747041836663,0.2252842,104410.0,104400.0,2.35115189]
[1747041836869,0.23486173,104410.0,104400.0,2.36072988]
[1747041837065,0.0433092,104410.0,104400.0,2.36072942]
[1747041839104,0.22528475,104410.0,104400.0,2.33199545]
[1747041839307,0.22528475,104410.0,104400.0,2.34157344]
[1747041839493,0.22528475,104410.0,104400.0,2.35115134]
[1747041839693,0.03373222,104410.0,104400.0,2.35115134]
[1747041840945,0.02415469,104410.0,104400.0,2.35115134]
[1747041841937,0.01457698,104410.0,104400.0,2.36050931]
[1747041842156,0.03373158,104410.0,104400.0,2.39140931]
[1747041842368,0.02415414,104410.0,104400.0,2.39140931]
[1747041842575,0.03373158,104410.0,104400.0,2.39140931]
[1747041842782,0.03373158,104410.0,104400.0,2.38205134]
[1747041843189,0.03373158,104410.0,104400.0,2.36695134]
[1747041843391,0.02415414,104410.0,104400.0,2.36695134]
[1747041843595,0.03373158,104410.0,104400.0,2.36695134]
[1747041844091,0.02415414,104410.0,104400.0,2.38195134]
[1747041844282,0.03373149,104410.0,104400.0,2.38195134]
[1747041844761,0.02415414,104410.0,104400.0,2.17330261]
[1747041845033,0.01457698,104410.0,104400.0,2.17330261]
[1747041845246,0.0337314,104410.0,104400.0,2.17330261]
[1747041845622,0.02415405,104410.0,104400.0,2.17330261]
[1747041846239,0.0337313,104410.0,104400.0,2.17330261]
[1747041846448,0.0337313,104410.0,104400.0,2.18277475]
[1747041846883,0.005,104410.0,104400.0,2.18277475]
[1747041847096,0.02415378,104410.0,104400.0,2.18277475]
[1747041847308,0.005,104410.0,104400.0,2.17330261]
[1747041847738,0.005,104410.0,104400.0,2.26915691]
[1747041847950,0.005,104410.0,104400.0,2.52705033]
[1747041848157,0.005,104410.0,104400.0,2.65159118]
[1747041848579,0.002,104430.0,104420.0,0.59086319]
[1747041848786,0.002,104430.0,104420.0,2.33110519]
[1747041848787,0.00204888,104430.0,104420.0,2.33110519]
[1747041848996,0.00204888,104430.0,104420.0,1.66038644]
[1747041849866,0.00204888,104430.0,104420.0,0.83084544]
[1747041850070,0.00304888,104430.0,104420.0,0.83184544]
[1747041851160,0.00404888,104430.0,104420.0,0.83384544]
[1747041852361,0.00404888,104430.0,104420.0,0.92969974]
[1747041857258,0.00404888,104430.0,104420.0,0.70569215]
[1747041857459,0.00404888,104430.0,104420.0,0.89722633]
[1747041857842,0.00404888,104430.0,104420.0,0.92595534]
[1747041861970,0.2147151,104430.0,104420.0,0.79942104]
[1747041862178,0.04235038,104430.0,104420.0,0.79942104]
[1747041862385,0.04235028,104430.0,104420.0,0.79942104]
[1747041862599,0.03277468,104430.0,104420.0,0.79942104]
[1747041862862,0.04235028,104430.0,104420.0,0.79942104]
[1747041863062,0.03277468,104430.0,104420.0,1.21294104]
[1747041863463,0.04235019,104430.0,104420.0,1.21294104]
[1747041863788,0.04235019,104430.0,104420.0,1.22273314]
[1747041865092,0.03277468,104430.0,104420.0,1.22273314]
[1747041865317,0.01362393,104430.0,104420.0,1.23783314]
[1747041865521,0.01362393,104430.0,104420.0,1.25423314]
[1747041865722,0.02319917,104430.0,104420.0,1.25423314]
[1747041866346,0.02319899,104430.0,104420.0,1.25423314]
[1747041866553,0.01362384,104430.0,104420.0,1.25423314]
[1747041866929,0.02319899,104430.0,104420.0,1.25423314]
[1747041868345,0.02319899,104430.0,104420.0,1.23913314]
[1747041869556,0.02319899,104430.0,104420.0,1.25443314]
[1747041869768,0.00404888,104430.0,104420.0,1.25443314]
[1747041869986,0.01362384,104430.0,104420.0,1.25443314]
[1747041870169,0.00404888,104430.0,104420.0,1.25443314]
[1747041870427,0.00404888,104430.0,104420.0,1.35028744]
[1747041873342,0.00404888,104430.0,104420.0,1.34049534]
[1747041875754,0.00404888,104430.0,104420.0,2.67797934]
[1747041877282,0.00404888,104430.0,104420.0,2.51795034]
[1747041877498,0.00404888,104430.0,104420.0,2.30377334]
[1747041877711,0.00404888,104430.0,104420.0,1.98502434]
[1747041880627,0.00404888,104430.0,104420.0,1.99457981]
[1747041881639,0.00404888,104430.0,104420.0,2.00890308]
[1747041882303,0.00404888,104430.0,104420.0,1.99934761]
[1747041882507,0.00404888,104430.0,104420.0,1.98502434]
[1747041882927,0.00404888,104430.0,104420.0,2.00956519]
[1747041883682,0.00404888,104430.0,104420.0,2.05956519]
[1747041884089,0.00404888,104430.0,104420.0,2.0690075]
[1747041886834,0.00404888,104430.0,104420.0,2.08314384]
[1747041888386,0.00404888,104430.0,104420.0,2.07370153]
[1747041888612,0.00404888,104430.0,104420.0,2.05956519]
[1747041889356,0.00404888,104430.0,104420.0,2.06899004]
[1747041891146,0.00404888,104430.0,104420.0,2.01899004]
[1747041891340,0.00404888,104430.0,104420.0,1.42446104]
[1747041891591,0.00404888,104430.0,104420.0,1.97619004]
[1747041891839,0.00404888,104430.0,104420.0,1.92962704]
[1747041892050,0.00404888,104430.0,104420.0,1.94413516]
[1747041892987,0.00404888,104430.0,104420.0,1.80215431]
[1747041893213,0.00404888,104430.0,104420.0,1.21512831]
[1747041893385,0.00404888,104430.0,104420.0,1.33256831]
[1747041893386,0.01964888,104430.0,104420.0,1.33256831]
[1747041893624,0.03584888,104430.0,104420.0,1.33256831]
[1747041895433,0.04542393,104430.0,104420.0,1.21512831]
[1747041895655,0.03584888,104430.0,104420.0,1.33256831]
[1747041895849,0.04542384,104430.0,104420.0,1.33256831]
[1747041896039,0.06457404,104430.0,104420.0,1.22220589]
[1747041896234,0.05499889,104430.0,104420.0,1.22220589]
[1747041896443,0.04542384,104430.0,104420.0,1.22220589]
[1747041896643,0.05499899,104430.0,104420.0,1.22220589]
[1747041896893,0.04542384,104430.0,104420.0,1.22220589]
[1747041897855,0.05499899,104430.0,104420.0,1.22220589]
[1747041898027,0.04542384,104430.0,104420.0,1.21278104]
[1747041898249,0.05499899,104430.0,104420.0,1.21278104]
[1747041898425,0.04542384,104430.0,104420.0,1.21278104]
[1747041898886,0.03584888,104430.0,104420.0,1.21278104]
[1747041905251,0.03584888,104430.0,104420.0,1.22250484]
[1747041907899,0.2560907,104430.0,104420.0,0.53862225]
[1747041908115,0.1604299,104430.0,104420.0,0.86666938]
[1747041908336,0.35194574,104430.0,104420.0,0.85709304]
[1747041908581,0.35194574,104430.0,104420.0,1.20666965]
[1747041908803,0.35194574,104430.0,104420.0,1.19709313]
[1747041909015,0.34237041,104430.0,104420.0,1.20666974]
[1747041909650,0.34237041,104430.0,104420.0,0.99598225]
[1747041909862,0.33279481,104430.0,104420.0,0.99598225]
[1747041911152,0.33279481,104430.0,104420.0,1.00555895]
[1747041911351,0.33279481,104430.0,104420.0,1.19709313]
[1747041911955,0.33279481,104430.0,104420.0,1.20666974]
[1747041912265,0.33279481,104430.0,104420.0,1.00555895]
[1747041912440,0.33279481,104430.0,104420.0,1.19709313]
[1747041916221,0.33279481,104430.0,104420.0,1.20666974]
[1747041917332,0.33279481,104430.0,104420.0,1.2160763]
[1747041918212,0.32321902,104430.0,104420.0,1.00538881]
[1747041918425,0.32321902,104430.0,104420.0,1.19709304]
[1747041919569,0.33279472,104430.0,104420.0,1.20666956]
[1747041919817,0.0454243,104430.0,104420.0,1.23539839]
[1747041920104,0.01362403,104430.0,104420.0,1.23539839]
[1747041920315,0.03277496,104430.0,104420.0,1.23539839]
[1747041920987,0.2242908,104430.0,104420.0,1.23539839]
[1747041921197,0.05745066,104430.0,104420.0,1.23539839]
[1747041921387,0.27494229,104430.0,104420.0,1.23539848]
[1747041921718,0.27494229,104430.0,104420.0,1.22582233]
[1747041921929,0.27494229,104430.0,104420.0,1.23539858]
[1747041922142,0.27494229,104430.0,104420.0,1.23539766]
[1747041922366,0.07385066,104430.0,104420.0,1.23539766]
[1747041922573,0.2653665,104430.0,104420.0,1.23539766]
[1747041922776,0.27494229,104430.0,104420.0,1.23539766]
[1747041922986,0.24621621,104430.0,104420.0,0.99598225]
[1747041923211,0.34207051,104430.0,104420.0,0.53862225]
[1747041923433,0.34207051,104430.0,104420.0,0.65594225]
[1747041926772,0.34207051,104430.0,104420.0,0.43159112]
[1747041928262,0.34207051,104430.0,104420.0,0.6231253]
[1747041928659,0.33249481,104430.0,104420.0,0.44116782]
[1747041929281,0.33249481,104430.0,104420.0,0.43159112]
[1747041929457,0.33249481,104430.0,104420.0,0.6231253]
[1747041929663,0.33249481,104430.0,104420.0,0.632702]
[1747041929867,0.33249481,104430.0,104420.0,0.64206731]
[1747041930087,0.32567032,104430.0,104420.0,0.66122008]
[1747041930300,0.02320018,104430.0,104420.0,0.67079614]
[1747041930502,0.02319899,104430.0,104420.0,1.01079614]
[1747041931480,0.04234956,104430.0,104420.0,1.01079614]
[1747041932342,0.03277423,104430.0,104420.0,1.01079614]
[1747041932563,0.02319899,104430.0,104420.0,1.01079614]
[1747041932988,0.03277423,104430.0,104420.0,1.01079614]
[1747041933237,0.03277423,104430.0,104420.0,1.00143083]
[1747041933453,0.00404888,104430.0,104420.0,1.03153083]
[1747041933893,0.00404888,104430.0,104420.0,1.04114267]
[1747041938024,0.00404888,104430.0,104420.0,1.03153083]
[1747041940761,0.00404888,104430.0,104420.0,2.72005113]
[1747041940975,0.00404888,104430.0,104420.0,2.67517913]
[1747041941175,0.00404888,104430.0,104420.0,2.25297513]
[1747041941620,0.00404888,104430.0,104420.0,2.19406613]
[1747041942631,0.00404888,104430.0,104420.0,2.16827613]
[1747041943663,0.00404888,104430.0,104420.0,2.17801474]
[1747041944069,0.00404888,104430.0,104420.0,2.18801474]
[1747041944717,0.00404888,104430.0,104420.0,1.14712374]
[1747041945097,0.00404888,104430.0,104420.0,4.14712374]
[1747041945473,0.00404888,104430.0,104420.0,2.87359974]
[1747041945877,0.00404888,104430.0,104420.0,2.81809274]
[1747041946986,0.00404888,104430.0,104420.0,2.36227174]
[1747041948216,0.00404888,104430.0,104420.0,2.35253313]
[1747041949082,0.00404888,104430.0,104420.0,2.36221255]
[1747041951370,0.00404888,104430.0,104420.0,2.35221255]
[1747041951573,0.00404888,104430.0,104420.0,1.13686455]
[1747041951780,0.00404888,104430.0,104420.0,1.29223055]
[1747041953264,0.00404888,104430.0,104420.0,1.46124355]
[1747041953504,0.00404888,104430.0,104420.0,1.38759055]
[1747041954023,0.00404888,104430.0,104420.0,1.22810146]
[1747041954219,0.00404888,104430.0,104420.0,1.12044846]
[1747041958183,0.00404888,104430.0,104420.0,1.11076904]
[1747041959827,0.00404888,104430.0,104420.0,1.09668513]